fUST/lending_fUST_20250209
["ID","MTS","AMOUNT","RATE_DAILY","PERIOD"]
[352375563,1739067051268,-3945.58,0.00010958,2]
[352375564,1739067051277,-500.0,0.00010958,2]
[352375566,1739067051286,-594.82298003,0.00010958,2]
[352375568,1739067051295,-500.0,0.00010958,2]
[352375570,1739067051304,-500.0,0.00010958,2]
[352375572,1739067051313,-500.0,0.00010958,2]
[352375573,1739067051322,-729.67,0.00010958,2]
[352375575,1739067051332,-502.72559664,0.00010958,2]
[352375577,1739067051341,-500.0,0.00010958,2]
[352375579,1739067051350,-503.82236913,0.00010958,2]
[352375580,1739067051360,-505.42812989,0.00010958,2]
[352375582,1739067051369,-500.0,0.00010958,2]
[352375584,1739067051378,-501.38648766,0.00010958,2]
[352375586,1739067051387,-1609.12,0.00010958,2]
[352375587,1739067051396,-385.73277597,0.00010958,2]
[352375589,1739067051406,-1443.53,0.00010958,2]
[352375591,1739067051415,-500.0,0.00010958,2]
[352375593,1739067051424,-500.0,0.00010958,2]
[352375594,1739067051433,-500.0,0.00010958,2]
[352375596,1739067051445,-501.8377021,0.00010958,2]
[352375598,1739067051454,-500.0,0.00010958,2]
[352375600,1739067051464,-503.31991198,0.00010958,2]
[352375602,1739067051473,-505.56305968,0.00010958,2]
[352375603,1739067051484,-500.0,0.00010958,2]
[352375605,1739067051493,-500.0,0.00010958,2]
[352375607,1739067051502,-500.0,0.00010958,2]
[352375609,1739067051513,-1300.18,0.00010958,2]
[352375611,1739067051523,-897.13,0.00010958,2]
[352375612,1739067051533,-502.97452605,0.00010958,2]
[352375629,1739067051542,-500.0,0.00010958,2]
[352375631,1739067051719,-500.0,0.00010958,2]
[352375632,1739067051728,-500.0,0.00010958,2]
[352375634,1739067051737,-1583.75,0.00010958,2]
[352375636,1739067051746,-504.21381563,0.00010958,2]
[352375638,1739067051756,-500.0,0.00010958,2]
[352375640,1739067051765,-201.79512126,0.00010958,2]
[352375642,1739067051775,-500.0,0.00010958,2]
[352375644,1739067051784,-500.0,0.00010958,2]
[352375645,1739067051793,-663.67,0.00010958,2]
[352375647,1739067051802,-727.21,0.00010958,2]
[352375649,1739067051812,-500.0,0.00010958,2]
[352375651,1739067051821,-500.0,0.00010958,2]
[352375653,1739067051830,-500.0,0.00010958,2]
[352375655,1739067051839,-500.0,0.00010958,2]
[352375656,1739067051849,-504.86860586,0.00010958,2]
[352375658,1739067051858,-500.0,0.00010958,2]
[352375660,1739067051868,-500.0,0.00010958,2]
[352375662,1739067051878,-500.0,0.00010958,2]
[352375664,1739067051887,-500.0,0.00010958,2]
[352375666,1739067051896,-501.32175393,0.00010958,2]
[352375668,1739067051906,-590.47,0.00010958,2]
[352375669,1739067051915,-500.0,0.00010958,2]
[352375671,1739067051925,-500.0,0.00010958,2]
[352375673,1739067051934,-801.94,0.00010958,2]
[352375675,1739067051943,-500.0,0.00010958,2]
[352375677,1739067051953,-502.96556661,0.00010958,2]
[352375679,1739067051962,-500.0,0.00010958,2]
[352375680,1739067051971,-1346.85,0.00010958,2]
[352375682,1739067051980,-500.0,0.00010958,2]
[352375684,1739067051993,-500.0,0.00010958,2]
[352375686,1739067052014,-505.98750054,0.00010958,2]
[352375688,1739067052035,-680.38,0.00010958,2]
[352375690,1739067052058,-500.0,0.00010958,2]
[352375692,1739067052080,-500.0,0.00010958,2]
[352375694,1739067052102,-2347.47,0.00010958,2]
[352375695,1739067052122,-17420.79,0.00010958,2]
[352375697,1739067052144,-500.0,0.00010958,2]
[352375699,1739067052165,-689.7,0.00010958,2]
[352375701,1739067052185,-503.61660239,0.00010958,2]
[352375703,1739067052207,-500.0,0.00010958,2]
[352375705,1739067052228,-500.0,0.00010958,2]
[352375707,1739067052252,-1171.4856164,0.00010984,2]
[352375709,1739067052272,-386.55455009,0.00011094,2]
[352375711,1739067052292,-500.0,0.00011094,2]
[352375713,1739067052307,-500.0,0.00011094,2]
[352375714,1739067052316,-500.0,0.00011094,2]
[352375716,1739067052326,-500.0,0.00011094,2]
[352375718,1739067052335,-502.38230744,0.00011095,2]
[352375720,1739067052344,-500.0,0.00011095,2]
[352375722,1739067052354,-500.0,0.00011095,2]
[352375724,1739067052367,-571.14,0.00011095,2]
[352375726,1739067052377,-500.0,0.00011095,2]
[352375728,1739067052385,-500.0,0.00011095,2]
[352375730,1739067052394,-500.0,0.00011095,2]
[352375731,1739067052404,-500.0,0.00011095,2]
[352375733,1739067052413,-312.84974973,0.00011095,2]
[352375735,1739067052422,-500.0,0.00011095,2]
[352375737,1739067052431,-594.05797666,0.00011095,2]
[352375739,1739067052445,-515.32,0.00011095,2]
[352375741,1739067052455,-500.0,0.00011095,2]
[352375743,1739067052463,-500.0,0.00011095,2]
[352375744,1739067052473,-500.0,0.00011095,2]
[352375746,1739067052483,-505.55318414,0.00011095,2]
[352375748,1739067052495,-500.0,0.00011095,2]
[352375750,1739067052506,-509.04561088,0.00011095,2]
[352375752,1739067052516,-602.85,0.00011095,2]
[352375754,1739067052526,-505.0715564,0.00011095,2]
[352375756,1739067052536,-506.40288418,0.00011095,2]
[352375758,1739067052545,-5221.11,0.00011095,2]
[352375759,1739067052554,-280.63591597,0.00011095,2]
[352375761,1739067052563,-500.0,0.00011095,2]
[352375763,1739067052572,-573.59,0.00011095,2]
[352375765,1739067052581,-760.0,0.00011095,2]
[352375767,1739067052590,-507.76839627,0.00011095,2]
[352375768,1739067052599,-500.0,0.00011095,2]
[352375770,1739067052608,-539.28,0.00011095,2]
[352375772,1739067052617,-500.0,0.00011095,2]
[352375774,1739067052626,-1704.45,0.00011095,2]
[352375775,1739067052635,-500.0,0.00011095,2]
[352375777,1739067052644,-571.31,0.00011095,2]
[352375779,1739067052653,-500.0,0.00011095,2]
[352375781,1739067052663,-500.0,0.00011095,2]
[352375783,1739067052673,-500.0,0.00011095,2]
[352375785,1739067052682,-500.0,0.00011095,2]
[352375787,1739067052691,-805.09,0.00011095,2]
[352375789,1739067052700,-500.0,0.00011095,2]
[352375790,1739067052709,-500.0,0.00011095,2]
[352375792,1739067052718,-811.15,0.00011095,2]
[352375794,1739067052728,-500.0,0.00011095,2]
[352375796,1739067052737,-500.0,0.00011095,2]
[352375798,1739067052747,-2301.41,0.00011095,2]
[352375799,1739067052756,-500.0,0.00011095,2]
[352375801,1739067052765,-500.0,0.00011095,2]
[352375803,1739067052774,-501.28250696,0.00011095,2]
[352375805,1739067052783,-500.0,0.00011095,2]
[352375807,1739067052792,-500.0,0.00011095,2]
[352375809,1739067052801,-529.03151275,0.00011095,2]
[352375811,1739067052810,-585.2,0.00011095,2]
[352375812,1739067052819,-500.0,0.00011095,2]
[352375814,1739067052828,-195.01467785,0.00011095,2]
[352375816,1739067052837,-500.0,0.00011095,2]
[352375818,1739067052847,-863.53,0.00011095,2]
[352375820,1739067052855,-500.0,0.00011095,2]
[352375822,1739067052865,-6002.33,0.00011095,2]
[352375823,1739067052874,-503.21666786,0.00011095,2]
[352375825,1739067052883,-500.0,0.00011095,2]
[352375827,1739067052892,-604.53,0.00011095,2]
[352375829,1739067052901,-500.0,0.00011095,2]
[352375831,1739067052911,-500.0,0.00011095,2]
[352375833,1739067052920,-500.0,0.00011095,2]
[352375834,1739067052930,-1554.97,0.00011095,2]
[352375836,1739067052941,-3945.58,0.00011095,2]
[352375838,1739067052950,-433.85814598,0.00011095,2]
[352375840,1739067052959,-500.0,0.00011095,2]
[352375842,1739067052968,-500.0,0.00011095,2]
[352375843,1739067052977,-500.0,0.00011095,2]
[352375845,1739067052985,-729.67,0.00011095,2]
[352375847,1739067052994,-500.0,0.00011095,2]
[352375849,1739067053004,-500.0,0.00011095,2]
[352375851,1739067053013,-1609.12,0.00011095,2]
[352375853,1739067053022,-1443.53,0.00011095,2]
[352375855,1739067053031,-500.0,0.00011095,2]
[352375857,1739067053040,-500.0,0.00011095,2]
[352375858,1739067053049,-500.0,0.00011095,2]
[352375859,1739067053058,-500.0,0.00011095,2]
[352375860,1739067053067,-500.0,0.00011095,2]
[352375861,1739067053076,-500.0,0.00011095,2]
[352375862,1739067053086,-507.79848418,0.00011095,2]
[352375863,1739067053095,-1300.18,0.00011095,2]
[352375864,1739067053104,-897.13,0.00011095,2]
[352375866,1739067053114,-500.0,0.00011095,2]
[352375867,1739067053123,-500.0,0.00011095,2]
[352375869,1739067053132,-473.85980215,0.00011095,2]
[352375871,1739067053141,-1583.75,0.00011095,2]
[352375873,1739067053150,-500.0,0.00011095,2]
[352375875,1739067053160,-505.99585476,0.00011095,2]
[352375877,1739067053169,-663.67,0.00011095,2]
[352375879,1739067053178,-727.21,0.00011095,2]
[352375881,1739067053187,-500.0,0.00011095,2]
[352375883,1739067053197,-500.0,0.00011095,2]
[352375885,1739067053207,-500.0,0.00011095,2]
[352375887,1739067053216,-500.0,0.00011095,2]
[352375889,1739067053226,-500.0,0.00011095,2]
[352375891,1739067053235,-503.66306925,0.00011095,2]
[352375893,1739067053244,-500.0,0.00011095,2]
[352375895,1739067053253,-590.47,0.00011095,2]
[352375897,1739067053262,-503.50253109,0.00011095,2]
[352375899,1739067053271,-500.0,0.00011095,2]
[352375901,1739067053279,-801.94,0.00011095,2]
[352375903,1739067053288,-500.04958125,0.00011095,2]
[352375905,1739067053297,-1346.85,0.00011095,2]
[352375906,1739067053307,-507.49131993,0.00011095,2]
[352375908,1739067053316,-500.0,0.00011095,2]
[352375910,1739067053325,-680.38,0.00011095,2]
[352375913,1739067053337,-642.13678522,0.00011095,2]
[352375914,1739067053351,-2347.47,0.00011095,2]
[352375915,1739067053364,-17420.79,0.00011095,2]
[352375916,1739067053377,-689.7,0.00011095,2]
[352375917,1739067053389,-500.0,0.00011095,2]
[352375918,1739067053399,-500.0,0.00011095,2]
[352375919,1739067053411,-215.7975175,0.000111,2]
[352375920,1739067053423,-153.0,0.000111,2]
[352375921,1739067053435,-647.9065942,0.000111,2]
[352375922,1739067053449,-215.7975175,0.000111,2]
[352375923,1739067053461,-215.7975175,0.000111,2]
[352375924,1739067053474,-153.8919364,0.000111,2]
[352375925,1739067053486,-215.7975175,0.000111,2]
[352375926,1739067053499,-215.7975175,0.000111,2]
[352375927,1739067053511,-153.0,0.000111,2]
[352375928,1739067053524,-153.0,0.000111,2]
[352375929,1739067053535,-215.7975175,0.000111,2]
[352375930,1739067053547,-500.0,0.00011231,2]
[352375931,1739067053559,-500.0,0.00011231,2]
[352375932,1739067053570,-500.0,0.00011231,2]
[352375933,1739067053582,-500.0,0.00011231,2]
[352375934,1739067053595,-500.0,0.00011232,2]
[352375935,1739067053607,-500.0,0.00011232,2]
[352375936,1739067053618,-571.14,0.00011232,2]
[352375937,1739067053628,-500.0,0.00011232,2]
[352375938,1739067053640,-500.0,0.00011232,2]
[352375939,1739067053650,-240.49866481,0.00011232,2]
[352375941,1739067053669,-259.50133519,0.00011232,2]
[352375942,1739067053681,-500.0,0.00011232,2]
[352375944,1739067053693,-500.0,0.00011232,2]
[352375946,1739067053706,-515.32,0.00011232,2]
[352375948,1739067053721,-500.0,0.00011232,2]
[352375951,1739067053736,-500.0,0.00011232,2]
[352375953,1739067053747,-643.44746101,0.00011232,2]
[352375956,1739067053760,-505.01082348,0.00011232,2]
[352375958,1739067053771,-5221.11,0.00011232,2]
[352375960,1739067053781,-500.0,0.00011232,2]
[352375962,1739067053790,-573.59,0.00011232,2]
[352375964,1739067053801,-760.0,0.00011232,2]
[352375966,1739067053813,-369.66979613,0.00011232,2]
[352375969,1739067053827,-539.28,0.00011232,2]
[352375971,1739067053839,-500.0,0.00011232,2]
[352375974,1739067053851,-1704.45,0.00011232,2]
[352375976,1739067053862,-504.19067911,0.00011232,2]
[352375978,1739067053873,-571.31,0.00011232,2]
[352375980,1739067053883,-500.0,0.00011232,2]
[352375982,1739067053895,-614.79973533,0.00011232,2]
[352375985,1739067053907,-500.0,0.00011232,2]
[352375987,1739067053919,-615.69918658,0.00011232,2]
[352375989,1739067053930,-805.09,0.00011232,2]
[352375991,1739067053940,-500.0,0.00011232,2]
[352375993,1739067053951,-500.0,0.00011232,2]
[352375995,1739067053961,-811.15,0.00011232,2]
[352375996,1739067053973,-500.0,0.00011232,2]
[352375997,1739067053984,-500.0,0.00011232,2]
[352375999,1739067053995,-2301.41,0.00011232,2]
[352376001,1739067054006,-500.0,0.00011232,2]
[352376003,1739067054018,-500.0,0.00011232,2]
[352376006,1739067054029,-504.78155112,0.00011232,2]
[352376008,1739067054039,-635.00763593,0.00011232,2]
[352376010,1739067054050,-585.2,0.00011232,2]
[352376012,1739067054061,-191.36319616,0.00011232,2]
[352376014,1739067054073,-405.56706068,0.00011232,2]
[352376016,1739067054084,-863.53,0.00011232,2]
[352376018,1739067054094,-505.4784723,0.00011232,2]
[352376021,1739067054106,-6002.33,0.00011232,2]
[352376023,1739067054117,-500.0,0.00011232,2]
[352376025,1739067054128,-604.53,0.00011232,2]
[352376027,1739067054139,-500.0,0.00011232,2]
[352376030,1739067054151,-639.91779666,0.00011232,2]
[352376032,1739067054163,-468.1638066,0.00011232,2]
[352376034,1739067054174,-1554.97,0.00011232,2]
[352376036,1739067054185,-3945.58,0.00011232,2]
[352376039,1739067054197,-500.0,0.00011232,2]
[352376041,1739067054208,-329.3573589,0.00011232,2]
[352376043,1739067054219,-553.34602858,0.00011232,2]
[352376045,1739067054230,-729.67,0.00011232,2]
[352376047,1739067054241,-555.28281816,0.00011232,2]
[352376049,1739067054251,-500.0,0.00011232,2]
[352376051,1739067054260,-1609.12,0.00011232,2]
[352376053,1739067054270,-1443.53,0.00011232,2]
[352376055,1739067054279,-500.0,0.00011232,2]
[352376057,1739067054289,-260.04477573,0.00011232,2]
[352376059,1739067054299,-500.0,0.00011232,2]
[352376061,1739067054308,-500.0,0.00011232,2]
[352376063,1739067054318,-500.0,0.00011232,2]
[352376065,1739067054327,-462.49107974,0.00011232,2]
[352376067,1739067054337,-1300.18,0.00011232,2]
[352376069,1739067054346,-897.13,0.00011232,2]
[352376071,1739067054356,-500.0,0.00011232,2]
[352376073,1739067054365,-500.0,0.00011232,2]
[352376075,1739067054374,-1583.75,0.00011232,2]
[352376077,1739067054384,-500.0,0.00011232,2]
[352376078,1739067054393,-663.67,0.00011232,2]
[352376079,1739067054402,-727.21,0.00011232,2]
[352376080,1739067054412,-500.0,0.00011232,2]
[352376081,1739067054421,-344.92397539,0.00011232,2]
[352376082,1739067054431,-565.16450937,0.00011232,2]
[352376083,1739067054443,-507.23897922,0.00011232,2]
[352376084,1739067054453,-500.0,0.00011232,2]
[352376085,1739067054462,-239.4445308,0.00011232,2]
[352376086,1739067054471,-590.47,0.00011232,2]
[352376087,1739067054480,-506.35314935,0.00011232,2]
[352376088,1739067054490,-801.94,0.00011232,2]
[352376089,1739067054499,-1346.85,0.00011232,2]
[352376090,1739067054509,-500.0,0.00011232,2]
[352376091,1739067054519,-680.38,0.00011232,2]
[352376092,1739067054528,-2347.47,0.00011232,2]
[352376093,1739067054538,-17420.79,0.00011232,2]
[352376094,1739067054547,-689.7,0.00011232,2]
[352376095,1739067054556,-500.0,0.00011232,2]
[352376096,1739067054565,-500.0,0.00011232,2]
[352376097,1739067054574,-13266.52937459,0.00011238,2]
[352376098,1739067054584,-500.0,0.00011368,2]
[352376099,1739067054593,-500.0,0.00011368,2]
[352376100,1739067054603,-500.0,0.00011368,2]
[352376101,1739067054613,-500.0,0.00011368,2]
[352376102,1739067054622,-500.0,0.00011369,2]
[352376103,1739067054632,-500.0,0.00011369,2]
[352376104,1739067054641,-571.14,0.00011369,2]
[352376105,1739067054651,-500.0,0.00011369,2]
[352376106,1739067054660,-500.0,0.00011369,2]
[352376107,1739067054669,-500.0,0.00011369,2]
[352376108,1739067054678,-500.0,0.00011369,2]
[352376109,1739067054688,-507.03632929,0.00011369,2]
[352376110,1739067054697,-515.32,0.00011369,2]
[352376111,1739067054706,-500.0,0.00011369,2]
[352376112,1739067054717,-500.0,0.00011369,2]
[352376113,1739067054728,-5221.11,0.00011369,2]
[352376114,1739067054737,-500.0,0.00011369,2]
[352376115,1739067054746,-573.59,0.00011369,2]
[352376116,1739067054756,-760.0,0.00011369,2]
[352376117,1739067054765,-539.28,0.00011369,2]
[352376118,1739067054774,-500.0,0.00011369,2]
[352376119,1739067054783,-1704.45,0.00011369,2]
[352376120,1739067054793,-571.31,0.00011369,2]
[352376121,1739067054802,-500.0,0.00011369,2]
[352376122,1739067054811,-500.0,0.00011369,2]
[352376123,1739067054821,-805.09,0.00011369,2]
[352376124,1739067054830,-500.0,0.00011369,2]
[352376125,1739067054839,-500.0,0.00011369,2]
[352376126,1739067054848,-811.15,0.00011369,2]
[352376127,1739067054858,-500.0,0.00011369,2]
[352376128,1739067054868,-500.0,0.00011369,2]
[352376129,1739067054878,-2301.41,0.00011369,2]
[352376130,1739067054887,-274.85806217,0.00011369,2]
[352376131,1739067054896,-500.0,0.00011369,2]
[352376132,1739067054906,-585.2,0.00011369,2]
[352376133,1739067054916,-863.53,0.00011369,2]
[352376134,1739067054926,-6002.33,0.00011369,2]
[352376135,1739067054935,-625.57908092,0.00011369,2]
[352376136,1739067054945,-604.53,0.00011369,2]
[352376137,1739067054955,-500.0,0.00011369,2]
[352376138,1739067055240,-1554.97,0.00011369,2]
[352376139,1739067055251,-331.4832196,0.00011369,2]
[352376142,1739067597294,718.6809,0.00014,30]
[352376143,1739067655605,1000.0,0.00014,30]
[352376149,1739068026107,-2484.52576458,9.826e-05,2]
[352376156,1739068146115,-4753.41627323,9.728e-05,2]
[352376157,1739068146136,-441.07768912,9.826e-05,2]
[352376158,1739068146157,-300.0,9.849e-05,2]
[352376159,1739068146179,-12645.50691941,9.85e-05,2]
[352376160,1739068147147,-168.2854065,9.85e-05,2]
[352376161,1739068153102,-269.5307243,9.85e-05,2]
[352376219,1739068232454,-38.75046249,9.85e-05,2]
[352376220,1739068232463,-230.6846406,0.00010126,2]
[352376222,1739068232472,-400.0,0.00010685,2]
[352376224,1739068232481,-300.0,0.00010799,2]
[352376226,1739068232491,-1000.0,0.000108,2]
[352376228,1739068232500,-155.673,0.000108,2]
[352376230,1739068232509,-431.595035,0.000108,2]
[352376232,1739068232518,-709.5455182,0.000108,2]
[352376234,1739068232527,-154.5736464,0.000108,2]
[352376236,1739068232536,-354.7727591,0.000108,2]
[352376238,1739068232545,-215.7975175,0.000108,2]
[352376240,1739068232555,-345.8511939,0.00010958,2]
[352376242,1739068232563,-521.5728445,0.00010958,2]
[352376244,1739068232573,-502.45254353,0.00010958,2]
[352376246,1739068232582,-501.3826381,0.00010958,2]
[352376248,1739068232591,-503.04657816,0.00010958,2]
[352376250,1739068232600,-500.0,0.00010958,2]
[352376252,1739068232609,-500.0,0.00010958,2]
[352376254,1739068232618,-508.2835566,0.00010958,2]
[352376256,1739068232627,-500.0,0.00010958,2]
[352376258,1739068232636,-500.0,0.00010958,2]
[352376260,1739068232645,-500.0,0.00010958,2]
[352376262,1739068232654,-500.0,0.00010958,2]
[352376264,1739068232663,-503.12565678,0.00010958,2]
[352376266,1739068232672,-500.0,0.00010958,2]
[352376268,1739068232681,-502.36215093,0.00010958,2]
[352376270,1739068232690,-500.0,0.00010958,2]
[352376272,1739068232699,-501.84438874,0.00010958,2]
[352376274,1739068232707,-563.61446621,0.00010958,2]
[352376276,1739068232716,-504.25191668,0.00010958,2]
[352376278,1739068232725,-502.82012038,0.00010958,2]
[352376280,1739068232734,-503.5,0.00010958,2]
[352376281,1739068232744,-500.0,0.00010958,2]
[352376282,1739068232753,-337.13165924,0.00010958,2]
[352376283,1739068232761,-500.0,0.00010958,2]
[352376284,1739068232770,-500.0,0.00010958,2]
[352376285,1739068232779,-500.0,0.00010958,2]
[352376286,1739068232788,-500.0,0.00010958,2]
[352376287,1739068232797,-500.0,0.00010958,2]
[352376288,1739068232806,-500.0,0.00010958,2]
[352376289,1739068232816,-500.0,0.00010958,2]
[352376290,1739068232825,-584.399951,0.00010958,2]
[352376291,1739068232837,-506.24353298,0.00010958,2]
[352376292,1739068232846,-500.0,0.00010958,2]
[352376293,1739068232855,-720.35,0.00010958,2]
[352376294,1739068232865,-506.17024179,0.00010958,2]
[352376295,1739068232875,-506.63279034,0.00010958,2]
[352376296,1739068232884,-500.0,0.00010958,2]
[352376297,1739068232894,-500.0,0.00010958,2]
[352376298,1739068232903,-510.55677075,0.00010958,2]
[352376299,1739068232917,-502.58381245,0.00010958,2]
[352376300,1739068232928,-500.0,0.00010958,2]
[352376301,1739068232937,-502.72379457,0.00010958,2]
[352376302,1739068232946,-500.0,0.00010958,2]
[352376303,1739068232955,-662.9,0.00010958,2]
[352376304,1739068232965,-500.0,0.00010958,2]
[352376305,1739068232975,-192.9754936,0.00010958,2]
[352376307,1739068232984,-524.5,0.00010958,2]
[352376309,1739068232993,-588.76,0.00010958,2]
[352376311,1739068233002,-500.0,0.00010958,2]
[352376313,1739068233012,-500.0,0.00010958,2]
[352376315,1739068233021,-500.0,0.00010958,2]
[352376317,1739068233030,-504.08259309,0.00010958,2]
[352376319,1739068233047,-217.73837201,0.00010958,2]
[352376322,1739068233060,-504.42958481,0.00010958,2]
[352376324,1739068233070,-500.0,0.00010958,2]
[352376326,1739068233082,-500.0,0.00010958,2]
[352376328,1739068233091,-500.0,0.00010958,2]
[352376330,1739068233101,-529.91851739,0.00010958,2]
[352376332,1739068233110,-602.48142635,0.00010958,2]
[352376334,1739068233122,-544.27061581,0.00010958,2]
[352376336,1739068233132,-500.0,0.00010958,2]
[352376338,1739068233143,-502.15091652,0.00010958,2]
[352376340,1739068233152,-500.0,0.00010958,2]
[352376341,1739068233162,-544.77,0.00010958,2]
[352376342,1739068233172,-500.0,0.00010958,2]
[352376343,1739068233182,-506.39535228,0.00010958,2]
[352376344,1739068233192,-500.0,0.00010958,2]
[352376345,1739068233202,-500.0,0.00010958,2]
[352376346,1739068233212,-500.0,0.00010958,2]
[352376347,1739068233222,-506.40191446,0.00010958,2]
[352376349,1739068233231,-500.0,0.00010958,2]
[352376351,1739068233242,-500.0,0.00010958,2]
[352376352,1739068233251,-500.0,0.00010958,2]
[352376354,1739068233262,-500.0,0.00010958,2]
[352376355,1739068233272,-500.0,0.00010958,2]
[352376357,1739068233282,-500.0,0.00010958,2]
[352376358,1739068233292,-598.99,0.00010958,2]
[352376360,1739068233302,-2195.71,0.00010958,2]
[352376362,1739068233312,-500.0,0.00010958,2]
[352376364,1739068233323,-500.0,0.00010958,2]
[352376365,1739068233333,-505.98488445,0.00010958,2]
[352376366,1739068233343,-614.59932704,0.00010958,2]
[352376367,1739068233353,-500.0,0.00010958,2]
[352376368,1739068233362,-500.0,0.00010958,2]
[352376369,1739068233372,-495.32141906,0.00010958,2]
[352376370,1739068233382,-500.0,0.00010958,2]
[352376371,1739068233392,-567.81,0.00010958,2]
[352376372,1739068233402,-500.0,0.00010958,2]
[352376373,1739068233412,-500.0,0.00010958,2]
[352376374,1739068233421,-516.37223743,0.00010958,2]
[352376375,1739068233431,-500.0,0.00010958,2]
[352376376,1739068233441,-500.0,0.00010958,2]
[352376377,1739068233451,-634.60081362,0.00010958,2]
[352376378,1739068233461,-500.0,0.00010958,2]
[352376379,1739068233471,-500.0,0.00010958,2]
[352376380,1739068233481,-8138.78,0.00010958,2]
[352376381,1739068233495,-1718.32,0.00010958,2]
[352376382,1739068233505,-856.67,0.00010958,2]
[352376383,1739068233515,-316.86012232,0.00010958,2]
[352376384,1739068233525,-245.81185511,0.00010958,2]
[352376385,1739068233534,-1055.91,0.00010958,2]
[352376386,1739068233544,-500.0,0.00010958,2]
[352376387,1739068233554,-849.02,0.00010958,2]
[352376388,1739068233564,-500.0,0.00010958,2]
[352376389,1739068233574,-500.0,0.00010958,2]
[352376390,1739068233584,-597.76,0.00010958,2]
[352376391,1739068233595,-767.34,0.00010958,2]
[352376392,1739068233605,-788.04,0.00010958,2]
[352376393,1739068233615,-505.4156243,0.00010958,2]
[352376394,1739068233625,-500.0,0.00010958,2]
[352376395,1739068233634,-500.0,0.00010958,2]
[352376396,1739068233644,-500.0,0.00010958,2]
[352376397,1739068233653,-500.0,0.00010958,2]
[352376398,1739068233662,-500.0,0.00010958,2]
[352376399,1739068233671,-500.0,0.00010958,2]
[352376400,1739068233681,-500.0,0.00010958,2]
[352376401,1739068233690,-500.0,0.00010958,2]
[352376402,1739068233700,-500.0,0.00010958,2]
[352376403,1739068233905,-621.24,0.00010958,2]
[352376404,1739068233917,-500.0,0.00010958,2]
[352376405,1739068233927,-500.0,0.00010958,2]
[352376406,1739068233937,-500.0,0.00010958,2]
[352376407,1739068233946,-327.66547464,0.00010958,2]
[352376408,1739068233956,-2037.13,0.00010958,2]
[352376409,1739068233965,-563.95,0.00010958,2]
[352376410,1739068233975,-500.0,0.00010958,2]
[352376411,1739068233985,-869.45,0.00010958,2]
[352376412,1739068233994,-500.0,0.00010958,2]
[352376413,1739068234004,-178.2704704,0.00010958,2]
[352376414,1739068234014,-500.0,0.00010958,2]
[352376415,1739068234024,-500.0,0.00010958,2]
[352376416,1739068234034,-500.0,0.00010958,2]
[352376417,1739068234044,-500.0,0.00010958,2]
[352376418,1739068234055,-500.0,0.00010958,2]
[352376419,1739068234065,-1608.64,0.00010958,2]
[352376420,1739068234074,-500.0,0.00010958,2]
[352376421,1739068234084,-500.0,0.00010958,2]
[352376422,1739068234093,-500.0,0.00010958,2]
[352376423,1739068234103,-374.25078193,0.00010958,2]
[352376424,1739068234113,-820.13,0.00010958,2]
[352376425,1739068234122,-504.12558369,0.00010958,2]